bitfinex-derivatives/quotes_SOLF0:USTF0_20240820
["timestamp","ask_amount","ask_price","bid_price","bid_amount"]
[1724119620359,8.48550462,145.44,145.42,0.04876078]
[1724119621157,3.4368,145.43,145.42,0.04876078]
[1724119621859,8.48550462,145.44,145.42,0.04876078]
[1724119622451,11.92220462,145.44,145.42,0.04876078]
[1724119624552,3.4368,145.43,145.42,0.04876078]
[1724119626463,3.4374,145.41,145.38,1.3814]
[1724119626764,11.8774,145.41,145.38,4.8193]
[1724119627565,11.92626774,145.41,145.39,3.4378]
[1724119628564,11.92626774,145.41,145.38,4.86306853]
[1724119630759,8.44,145.39,145.38,0.04376853]
[1724119631865,11.8778,145.39,145.38,0.04376853]
[1724119633975,8.44,145.39,145.38,0.04376853]
[1724119634467,11.8778,145.39,145.38,0.04376853]
[1724119639274,0.04886774,145.41,145.38,0.04376853]
[1724119639472,8.48886774,145.41,145.38,0.04376853]
[1724119639974,11.92616774,145.41,145.39,3.4376]
[1724119640170,8.48886774,145.41,145.38,0.04376853]
[1724119640369,0.04886774,145.41,145.38,0.04376853]
[1724119640568,0.04886774,145.41,145.4,3.4375]
[1724119640771,8.48886774,145.41,145.38,1.34726853]
[1724119641276,8.48886774,145.41,145.39,3.4376]
[1724119642378,11.92626774,145.41,145.38,4.78526853]
[1724119642573,8.44,145.39,145.38,0.04376853]
[1724119643770,11.8778,145.39,145.38,0.04376853]
[1724119645274,8.44,145.39,145.38,0.04376853]
[1724119648085,11.8778,145.39,145.38,0.04376853]
[1724119654284,8.44,145.39,145.38,0.04376853]
[1724119657187,3.4376,145.4,145.38,0.04376853]
[1724119657495,8.48886774,145.41,145.38,0.04376853]
[1724119657889,8.48886774,145.41,145.39,3.4376]
[1724119658984,11.92616774,145.41,145.38,3.48166853]
[1724119659380,8.48886774,145.41,145.38,0.04376853]
[1724119659693,8.44,145.39,145.38,0.04376853]
[1724119661286,11.8778,145.39,145.38,0.04376853]
[1724119662485,3.4378,145.39,145.38,0.04376853]
[1724119662694,11.8778,145.39,145.38,0.04376853]
[1724119673111,3.4382,145.38,145.35,4.7746]
[1724119673319,8.44,145.37,145.35,4.7746]
[1724119674409,8.48839579,145.37,145.35,4.82171315]
[1724119674911,11.92669579,145.37,145.35,4.82171315]
[1724119675309,11.92669579,145.37,145.35,1.38311315]
[1724119677709,11.92679579,145.37,145.35,0.04711315]
[1724119679217,3.4385,145.36,145.35,0.04711315]
[1724119681507,11.92669579,145.37,145.35,0.04711315]
[1724119681708,8.48839579,145.37,145.35,0.04711315]
[1724119682713,11.92669579,145.37,145.35,0.04711315]
[1724119686418,3.4385,145.36,145.35,0.04711315]
[1724119692626,3.4392,145.33,145.3,1.2466]
[1724119692820,8.44,145.32,145.3,1.2466]
[1724119693021,8.44,145.33,145.3,1.2466]
[1724119693826,8.49270957,145.33,145.3,4.73350689]
[1724119694429,0.05270957,145.33,145.32,3.4394]
[1724119694623,33.76,145.4,145.3,1.29370689]
[1724119694624,8.44,145.36,145.31,1.3488]
[1724119694828,8.44,145.36,145.32,1.3797]
[1724119695525,8.44,145.36,145.33,0.04787371]
[1724119695722,0.04461279,145.35,145.33,3.48697371]
[1724119696123,0.04461279,145.35,145.34,3.439]
[1724119696325,11.8781,145.38,145.34,3.439]
[1724119697218,0.0443223,145.37,145.34,3.439]
[1724119698428,0.0443223,145.37,145.33,0.04787371]
[1724119698827,0.0443223,145.37,145.35,3.4386]
[1724119700024,0.0443223,145.37,145.36,3.4385]
[1724119701031,3.4376,145.4,145.37,3.4381]
[1724119701227,11.8776,145.4,145.37,3.4381]
[1724119702026,8.44,145.4,145.38,3.4379]
[1724119702231,0.05137352,145.4,145.38,3.4379]
[1724119703633,8.44,145.44,145.38,8.44]
[1724119703822,20.9289,145.52,145.39,1.3709]
[1724119704021,0.2889,145.52,145.43,3.4367]
[1724119704227,8.44,145.46,145.43,3.4367]
[1724119704929,11.9266712,145.46,145.43,3.48443065]
[1724119705630,8.44,145.45,145.43,3.48443065]
[1724119711640,8.44,145.44,145.43,0.04773065]
[1724119712234,11.8766,145.44,145.43,0.04773065]
[1724119715441,8.44,145.44,145.36,3.4383]
[1724119715640,8.44,145.37,145.35,40.95389317]
[1724119715937,8.44,145.37,145.35,3.4386]
[1724119716338,8.48657219,145.37,145.35,3.48830724]
[1724119717731,8.48657219,145.37,145.35,0.04970724]
[1724119717932,8.44,145.36,145.35,0.04970724]
[1724119721540,0.383,145.45,145.35,12.01169021]
[1724119721742,8.44,145.41,145.36,2.7018]
[1724119721936,8.44,145.41,145.38,3.4379]
[1724119722639,8.48434306,145.41,145.38,3.4888248]
[1724119723538,0.04434306,145.41,145.39,3.4377]
[1724119726149,8.48434306,145.41,145.39,3.4377]
[1724119732854,20.64,145.54,145.38,0.0509248]
[1724119733054,11.8763,145.46,145.39,8.44]
[1724119733258,8.44,145.48,145.4,8.44]
[1724119733458,8.44,145.48,145.44,3.4365]
[1724119733659,3.4359,145.47,145.44,3.4365]
[1724119734054,3.48586158,145.47,145.44,3.48446457]
[1724119734257,0.04996158,145.47,145.44,3.48446457]
[1724119736362,8.44,145.46,145.44,0.04796457]
[1724119736868,3.48606158,145.47,145.44,0.04796457]
[1724119737256,8.44,145.46,145.44,0.04796457]
[1724119737762,8.44,145.46,145.44,3.48446457]
[1724119743359,3.48586158,145.47,145.44,3.48446457]
[1724119743561,11.92586158,145.47,145.44,3.48446457]
[1724119743761,0.04996158,145.47,145.45,3.4364]
[1724119743972,8.48996158,145.47,145.45,3.4364]
[1724119744370,8.48996158,145.47,145.44,3.48446457]
[1724119745466,8.44,145.46,145.44,0.04796457]
[1724119747966,11.8761,145.46,145.44,0.04796457]
[1724119749167,11.8764,145.45,145.44,0.04796457]
[1724119749368,8.44,145.45,145.37,11.0612]
[1724119750176,3.4367,145.44,145.4,3.4374]
[1724119750681,0.04808207,145.43,145.41,0.04691502]
[1724119755075,8.48808207,145.43,145.41,0.04691502]
[1724119760877,0.04808207,145.43,145.41,0.04691502]
[1724119766784,8.48808207,145.43,145.41,0.04691502]
[1724119767588,3.4371,145.42,145.41,0.04691502]
[1724119770180,3.48498207,145.43,145.41,0.04691502]
[1724119773084,8.44,145.42,145.41,0.04691502]
[1724119774390,11.8771,145.42,145.41,0.04691502]
[1724119775083,3.4374,145.41,145.37,6.0592]
[1724119775287,8.44,145.4,145.37,6.0592]
[1724119776079,8.4863456,145.4,145.37,2.66818121]
[1724119776288,8.44,145.38,145.37,0.04698121]
[1724119776483,8.44,145.38,145.31,2.5527]
[1724119776685,8.44,145.35,145.32,3.4392]
[1724119776995,8.44,145.33,145.28,42.32790764]
[1724119777285,3.4396,145.32,145.28,4.8117]
[1724119777679,0.04934176,145.31,145.29,0.04645635]
[1724119778482,3.48904176,145.31,145.29,0.04645635]
[1724119779085,0.04934176,145.31,145.29,0.04645635]
[1724119779492,8.44,145.3,145.26,4.35421469]
[1724119779797,8.44,145.27,145.26,4.35421469]
[1724119779984,8.44,145.3,145.26,4.35421469]
[1724119780585,3.4916099,145.29,145.27,0.04841136]
[1724119782492,0.0514099,145.29,145.27,0.04841136]
[1724119783189,8.44,145.34,145.27,8.48841136]
[1724119783387,8.44,145.34,145.28,1.3432]
[1724119783593,8.44,145.34,145.28,4.81552369]
[1724119783794,8.44,145.36,145.29,8.44]
[1724119784186,0.04810333,145.34,145.29,8.44]
[1724119784381,0.04810333,145.34,145.31,0.04673729]
[1724119785891,11.8792,145.33,145.31,0.04673729]
[1724119786086,8.44,145.32,145.31,0.04673729]
[1724119786997,11.8794,145.32,145.31,0.04673729]
[1724119792600,3.4394,145.32,145.31,0.04673729]
[1724119793007,8.44,145.33,145.31,0.04673729]
[1724119793795,3.4394,145.32,145.31,0.04673729]
[1724119794295,11.8793,145.33,145.31,0.04673729]
[1724119795096,11.92720333,145.34,145.31,3.48633729]
[1724119795403,8.48810333,145.34,145.31,0.04673729]
[1724119796299,3.4392,145.33,145.31,0.04673729]
[1724119801810,3.4394,145.32,145.31,0.04673729]
[1724119803814,11.8793,145.33,145.31,0.04673729]
[1724119804016,3.4393,145.33,145.31,0.04673729]
[1724119804809,11.92720333,145.34,145.31,0.04673729]
[1724119805515,0.04810333,145.34,145.31,0.04673729]
[1724119806319,0.04810333,145.34,145.32,3.4393]
[1724119807617,0.04810333,145.34,145.31,3.48623729]
[1724119809614,3.48710333,145.34,145.31,3.48623729]
[1724119809814,0.04810333,145.34,145.31,3.48623729]
[1724119810716,8.44,145.32,145.31,0.04673729]
[1724119813725,11.8794,145.33,145.31,0.04673729]
[1724119817922,8.44,145.33,145.31,3.48633729]
[1724119820225,0.04810333,145.34,145.32,3.4394]
[1724119820424,0.04810333,145.34,145.31,0.04673729]
[1724119821230,0.04810333,145.34,145.31,3.48623729]
[1724119823527,3.48710333,145.34,145.31,3.48623729]
[1724119842044,8.44,145.32,145.31,0.04673729]
[1724119842747,11.8794,145.32,145.31,0.04673729]
[1724119850350,3.4394,145.32,145.31,0.04673729]
[1724119850548,11.8794,145.32,145.31,0.04673729]
[1724119856052,0.04810333,145.34,145.31,0.04673729]
[1724119856258,8.44,145.33,145.31,0.04673729]
[1724119857654,3.4394,145.32,145.31,0.04673729]
[1724119857847,11.8794,145.32,145.31,0.04673729]
[1724119858053,11.8794,145.32,145.28,44.42542637]
[1724119858054,8.44,145.32,145.28,44.42542637]
[1724119858254,8.44,145.29,145.28,44.42542637]
[1724119858454,1.50836804,145.29,145.28,44.42542637]
[1724119859460,1.50836804,145.29,145.28,40.98512637]
[1724119861457,0.05094763,145.3,145.28,40.98512637]
[1724119861659,8.44,145.32,145.28,40.98512637]
[1724119861853,3.43984247,145.38,145.28,40.98512637]
[1724119862061,8.44,145.32,145.29,1.2705]
[1724119862454,11.8795,145.32,145.29,4.7105]
[1724119862655,11.9272594,145.32,145.29,4.75540851]
[1724119864152,8.44,145.31,145.29,4.75540851]
[1724119865060,11.8797,145.31,145.29,1.31540851]
[1724119865262,8.44,145.31,145.29,1.31540851]
[1724119866660,11.8799,145.31,145.29,1.31540851]
[1724119869090,3.4399,145.3,145.29,1.31540851]
[1724119869785,11.8799,145.3,145.29,1.31540851]
[1724119869985,11.8799,145.3,145.29,0.04490851]
[1724119878793,8.44,145.3,145.29,0.04490851]
[1724119878991,0.0477594,145.32,145.29,0.04490851]
[1724119879605,0.0477594,145.32,145.29,1.37100851]
[1724119880803,0.0477594,145.32,145.3,3.4397]
[1724119881300,0.0477594,145.32,145.31,3.4397]
[1724119881692,0.0477594,145.32,145.29,1.37100851]
[1724119882500,0.0477594,145.32,145.3,3.4398]
[1724119884490,8.4877594,145.32,145.3,3.4398]
[1724119884690,33.76,145.4,145.29,8.48490851]
[1724119884899,8.44,145.35,145.29,8.44]
[1724119885100,8.44,145.33,145.31,3.4395]
[1724119885906,8.48767225,145.33,145.31,3.49134965]
[1724119886403,8.44,145.32,145.31,3.49134965]
[1724119888508,8.48767225,145.33,145.31,0.05184965]
[1724119888704,33.76,145.4,145.31,0.05184965]
[1724119889011,33.76,145.4,145.3,40.98058015]
[1724119889012,8.44,145.35,145.3,40.98058015]
[1724119889211,8.44,145.35,145.33,3.4392]
[1724119889707,8.49062869,145.35,145.33,3.48330293]
[1724119890206,8.44,145.34,145.33,0.04410293]
[1724119892109,3.48942869,145.35,145.33,0.04410293]
[1724119892305,8.44,145.34,145.33,0.04410293]
[1724119897201,11.879,145.34,145.33,0.04410293]
[1724119897405,8.44,145.34,145.33,0.04410293]
[1724119902622,11.879,145.34,145.33,0.04410293]
[1724119906820,11.879,145.34,145.26,45.33084553]
[1724119906821,3.4396,145.32,145.26,45.33084553]
[1724119907029,8.44,145.3,145.27,1.04009523]
[1724119907211,8.44,145.3,145.28,6.88210534]
[1724119907408,8.44,145.3,145.28,3.4402]
[1724119907618,8.49090366,145.3,145.29,3.4401]
[1724119909418,8.49090366,145.3,145.28,3.4893446]
[1724119910521,0.05090366,145.3,145.28,3.4893446]
[1724119912525,0.05090366,145.3,145.29,3.4401]
[1724119912824,11.8793,145.33,145.28,3.51549372]
[1724119913029,11.8793,145.33,145.28,0.0490446]
[1724119913623,11.8793,145.33,145.29,3.46369824]
[1724119913822,11.8793,145.33,145.27,40.97907735]
[1724119914025,0.0462998,145.32,145.3,0.05156802]
[1724119914925,0.0462998,145.32,145.3,3.49146802]
[1724119917022,0.0462998,145.32,145.31,3.4397]
[1724119917222,0.0462998,145.32,145.3,0.05156802]
[1724119917927,20.64,145.45,145.3,0.05156802]
[1724119918119,8.44,145.35,145.29,9.4799486]
[1724119918320,8.44,145.35,145.32,3.4393]
[1724119919022,0.3864,145.44,145.32,0.04407419]
[1724119919337,8.44,145.38,145.31,11.91914156]
[1724119919516,3.4384,145.37,145.33,3.4391]
[1724119919927,11.8786,145.36,145.31,3.47914156]
[1724119920117,0.04838873,145.35,145.32,3.48808303]
[1724119920324,8.48838873,145.35,145.32,3.48808303]
[1724119920524,8.48838873,145.35,145.32,0.04878303]
[1724119921817,11.92708873,145.35,145.32,0.04878303]
[1724119922328,8.44,145.34,145.32,0.04878303]
[1724119922733,0.04838873,145.35,145.32,0.04878303]
[1724119923033,8.44,145.37,145.31,3.35434626]
[1724119923223,11.8784,145.37,145.33,3.4391]
[1724119923428,11.8784,145.37,145.33,3.47123442]
[1724119923625,0.3864,145.44,145.33,8.44]
[1724119923818,0.3864,145.44,145.28,1.3024]
[1724119923819,8.44,145.44,145.37,8.44]
[1724119924225,0.3864,145.51,145.33,1.3059]
[1724119924226,3.436,145.47,145.39,8.44]
[1724119924435,8.44,145.46,145.4,8.44]
[1724119924836,8.44,145.46,145.41,3.50664465]
[1724119925425,8.44,145.44,145.42,3.48874386]
[1724119925731,8.44,145.44,145.42,3.48893479]
[1724119926031,8.44,145.44,145.42,0.05203479]
[1724119927033,8.44,145.46,145.42,0.05203479]
[1724119927330,8.44,145.48,145.42,0.05203479]
[1724119927531,11.8757,145.48,145.43,3.4368]
[1724119927723,11.8757,145.48,145.44,0.04998572]
[1724119928422,11.8757,145.48,145.44,3.48648572]
[1724119930334,8.44,145.48,145.45,3.4363]
[1724119930534,8.44,145.48,145.44,0.04998572]
[1724119931326,8.44,145.49,145.44,0.04998572]
[1724119931733,8.44,145.49,145.42,8.44]
[1724119932037,11.8756,145.49,145.45,3.48432156]
[1724119932931,3.4357,145.48,145.45,0.04802156]
[1724119933132,11.8757,145.48,145.45,0.04802156]
[1724119934134,11.8756,145.49,145.45,3.48432156]
[1724119934435,11.8756,145.49,145.46,0.05293453]
[1724119934934,3.4357,145.48,145.46,0.05293453]
[1724119935144,3.88387695,145.54,145.46,0.05293453]
[1724119935145,8.44,145.51,145.46,3.48903453]
[1724119935439,3.4354,145.49,145.46,3.48903453]
[1724119936535,3.4357,145.48,145.46,0.05293453]
[1724119937836,3.4359,145.47,145.46,0.05293453]
[1724119938236,11.8759,145.47,145.46,0.05293453]
[1724119939037,8.44,145.47,145.37,8.44]
[1724119939342,8.44,145.42,145.37,8.44]
[1724119940034,11.8772,145.42,145.39,3.4378]
[1724119940234,0.04803823,145.41,145.39,3.4378]
[1724119940434,0.04803823,145.41,145.38,11.98690316]
[1724119940637,0.04803823,145.41,145.38,8.48991753]
[1724119941144,0.04803823,145.41,145.4,3.4375]
[1724119942646,3.4365,145.45,145.41,3.4372]
[1724119942837,3.4365,145.45,145.39,21.11]
[1724119943036,21.11,145.48,145.39,22.4024]
[1724119943344,3.4363,145.46,145.42,3.4369]
[1724119943841,3.4363,145.46,145.43,0.04996891]
[1724119944038,3.4364,145.45,145.43,0.04996891]
[1724119944238,21.11,145.5,145.43,0.04996891]
[1724119944445,3.4363,145.46,145.43,3.48676891]
[1724119944945,3.4363,145.46,145.43,0.04996891]
[1724119949042,3.4363,145.46,145.43,3.48676891]
[1724119952137,3.4363,145.46,145.43,0.04996891]
[1724119953832,3.4363,145.46,145.43,3.48676891]
[1724119954241,21.11,145.52,145.43,0.04996891]
[1724119954451,21.5884,145.53,145.46,0.04809887]
[1724119954837,3.4356,145.49,145.46,0.04809887]
[1724119955043,3.4356,145.49,145.46,3.48409887]
[1724119960550,21.11,145.49,145.46,0.04809887]
[1724119960747,21.11,145.47,145.46,0.04809887]
[1724119960945,0.0443872,145.46,145.39,1.2924]
[1724119961244,3.4367,145.44,145.39,1.2924]
[1724119961549,3.4367,145.44,145.41,3.4373]
[1724119961846,0.04506438,145.44,145.41,0.04636487]
[1724119962444,3.4369,145.43,145.41,0.04636487]
[1724119963458,3.4371,145.42,145.41,0.04636487]
[1724119963953,11.8771,145.42,145.41,0.04636487]
[1724119964441,3.4371,145.42,145.41,0.04636487]
[1724119964640,3.4379,145.39,145.35,3.4386]
[1724119965548,3.4381,145.38,145.35,3.4386]
[1724119965750,21.12,145.41,145.32,3.4394]
[1724119965949,3.4386,145.36,145.31,1.2615]
[1724119966352,3.4386,145.36,145.32,3.4394]
[1724119966956,3.4383,145.37,145.32,0.05226995]
[1724119967156,0.05105713,145.35,145.31,22.3815]
[1724119967452,0.05105713,145.35,145.33,3.48959963]
[1724119967755,21.12,145.41,145.33,21.17059963]
[1724119968142,21.12,145.41,145.34,3.4389]
[1724119968855,0.04779273,145.39,145.36,0.0480448]
[1724119969250,3.438,145.38,145.36,0.0480448]
[1724119969447,0.04779273,145.39,145.36,0.0480448]
[1724119970050,3.4382,145.37,145.36,0.0480448]
[1724119971553,0.04779273,145.39,145.36,0.0480448]
[1724119971755,3.4381,145.38,145.36,0.0480448]
[1724119973155,3.48569273,145.39,145.36,3.4865448]
[1724119975656,0.04779273,145.39,145.37,3.4382]
[1724119976053,3.48559273,145.39,145.36,3.4863448]
[1724119977357,0.04779273,145.39,145.37,3.4382]
[1724119980766,0.04779273,145.39,145.38,3.438]
[1724119981567,21.12,145.47,145.4,3.4375]
[1724119982853,3.437,145.43,145.42,0.04980609]
[1724119984165,0.04832473,145.4,145.35,1.2744]
[1724119984867,3.48602473,145.4,145.37,3.4381]
[1724119985173,3.48602473,145.4,145.37,3.48832687]
[1724119987770,3.4378,145.39,145.37,3.48832687]
[1724119988070,0.04832473,145.4,145.37,0.05022687]
[1724119988468,3.4378,145.39,145.37,0.05022687]
[1724119992578,3.48602473,145.4,145.37,3.48832687]
[1724119992873,0.04832473,145.4,145.37,0.05022687]
[1724119993269,0.04832473,145.4,145.37,21.17022687]
[1724119994270,0.04832473,145.4,145.37,21.16022687]
[1724119994879,0.04832473,145.4,145.39,3.4378]
[1724119996270,0.04832473,145.4,145.37,21.16022687]
[1724119996477,0.04832473,145.4,145.38,3.4379]
[1724120002187,3.48592473,145.4,145.37,3.48832687]
[1724120003789,0.04832473,145.4,145.38,3.4379]
[1724120004783,3.48592473,145.4,145.37,11.93832687]
[1724120008987,3.48592473,145.4,145.38,3.438]
[1724120009193,0.04832473,145.4,145.38,3.438]
[1724120010488,0.04832473,145.4,145.39,8.45]
[1724120011885,0.04832473,145.4,145.39,11.8878]
[1724120013191,3.4369,145.43,145.39,11.8878]
[1724120013595,3.4371,145.42,145.39,11.8878]
[1724120014297,3.4371,145.42,145.39,11.93901711]
[1724120015610,3.4369,145.43,145.4,3.4375]
[1724120018511,3.4371,145.42,145.39,11.93891711]
[1724120022608,3.4369,145.43,145.4,3.4375]
[1724120024011,3.4371,145.42,145.4,3.4375]
[1724120024813,3.437,145.43,145.4,3.4375]
[1724120025917,8.45,145.44,145.39,0.05121711]
[1724120026213,8.45,145.44,145.4,0.04685486]
[1724120026619,3.4369,145.43,145.4,3.48435486]
[1724120027215,3.437,145.43,145.4,3.48435486]
[1724120029814,3.4371,145.42,145.4,3.48435486]
[1724120031214,8.45,145.44,145.4,3.48435486]
[1724120031215,3.4369,145.43,145.4,3.48435486]
[1724120032216,8.45,145.45,145.41,3.4372]
[1724120032521,8.45,145.45,145.42,0.04407991]
[1724120032924,3.4367,145.44,145.42,0.04407991]
[1724120034015,3.4368,145.43,145.42,0.04407991]
[1724120036613,3.4366,145.44,145.42,0.04407991]
[1724120037526,3.4368,145.43,145.42,0.04407991]
[1724120042926,3.4367,145.44,145.42,0.04407991]
[1724120045620,3.4368,145.43,145.42,0.04407991]
[1724120051536,3.4366,145.44,145.42,0.04407991]
[1724120052236,3.4365,145.45,145.42,3.48107991]
[1724120053837,8.45,145.48,145.42,0.04407991]
[1724120054236,8.45,145.47,145.42,3.48107991]
[1724120054823,8.45,145.45,145.42,0.04407991]
[1724120055438,3.4367,145.44,145.42,0.04407991]
[1724120058040,8.45,145.45,145.42,0.04407991]
[1724120058836,3.4368,145.43,145.42,0.04407991]
[1724120075954,3.4367,145.44,145.42,0.04407991]
[1724120076158,8.45,145.46,145.42,0.04407991]
[1724120077863,3.4366,145.44,145.42,3.48097991]
[1724120083852,3.4366,145.44,145.42,0.04407991]
[1724120086364,3.4366,145.44,145.42,3.48117991]
[1724120087769,3.4364,145.45,145.42,3.48117991]
[1724120089177,3.46588931,145.49,145.42,0.04407991]
[1724120089367,8.45,145.49,145.42,8.49407991]
[1724120089672,3.4358,145.48,145.45,3.4363]
[1724120090774,3.4358,145.48,145.45,3.48475143]
[1724120092669,3.4355,145.49,145.46,3.4361]
[1724120092966,3.4355,145.49,145.46,3.48851035]
[1724120094076,3.4352,145.5,145.47,3.4359]
[1724120094274,3.4352,145.5,145.46,0.05241035]
[1724120094773,8.45,145.49,145.46,0.05241035]
[1724120094977,0.5315,145.54,145.46,0.05241035]
[1724120095172,8.45,145.5,145.46,0.05241035]
[1724120095576,3.4357,145.48,145.46,0.05241035]
[1724120099277,3.4359,145.47,145.46,0.05241035]
[1724120099580,8.45,145.47,145.4,20.47053826]
[1724120099878,33.8,145.48,145.3,242.99117208]
[1724120099879,8.45,145.42,145.36,3.8436]
[1724120100070,8.45,145.4,145.36,3.8436]
[1724120100266,8.45,145.39,145.36,2.5965]
[1724120100468,8.45,145.37,145.31,3.8601]
[1724120100672,8.45,145.36,145.31,23.09056688]
[1724120101174,8.45,145.34,145.33,0.04411558]
[1724120101377,11.8891,145.34,145.33,0.04411558]
[1724120101775,3.4391,145.34,145.33,0.04411558]
[1724120108378,11.8891,145.34,145.33,0.04411558]
[1724120109680,3.4391,145.34,145.33,0.04411558]
[1724120110084,0.04502624,145.35,145.33,0.04411558]
[1724120110883,8.45,145.34,145.33,0.04411558]
[1724120112286,11.889,145.34,145.33,0.04411558]
[1724120114172,3.48382624,145.35,145.33,0.04411558]
[1724120114378,0.04502624,145.35,145.33,0.04411558]
[1724120115282,3.439,145.34,145.33,0.04411558]
[1724120115973,3.48382624,145.35,145.33,0.04411558]
[1724120116184,0.04502624,145.35,145.33,0.04411558]
[1724120117782,0.04502624,145.35,145.33,3.48321558]
[1724120120092,0.04502624,145.35,145.34,3.439]
[1724120121290,8.45,145.39,145.33,8.49411558]
[1724120121488,11.8879,145.39,145.33,8.45]
[1724120121689,11.8879,145.39,145.35,3.4386]
[1724120122194,3.4381,145.38,145.36,0.04382195]
[1724120126089,8.45,145.41,145.36,0.04382195]
[1724120126282,8.45,145.41,145.33,9.7153]
[1724120126485,8.45,145.41,145.36,0.04659833]
[1724120126688,11.8875,145.41,145.38,3.4379]
[1724120127487,3.4376,145.4,145.37,3.4381]
[1724120128200,11.8874,145.41,145.38,3.438]
[1724120128500,8.45,145.39,145.36,0.04659833]
[1724120128707,11.8884,145.37,145.31,2.6323]
[1724120128994,11.8884,145.37,145.36,0.05278211]
[1724120129194,11.8884,145.37,145.31,2.6323]
[1724120129393,11.8884,145.37,145.33,0.04617508]
[1724120129791,11.8884,145.37,145.34,3.4388]
[1724120129988,3.4384,145.37,145.34,3.4388]
[1724120130398,8.45,145.38,145.35,3.4387]
[1724120130603,8.45,145.4,145.33,8.49617508]
[1724120131300,0.5366,145.47,145.34,8.45]
[1724120131513,8.45,145.41,145.35,0.04866828]
[1724120131800,8.45,145.41,145.35,1.2974]
[1724120132107,3.4377,145.4,145.37,0.04594648]
[1724120132302,8.45,145.42,145.37,1.37864648]
[1724120132500,8.45,145.42,145.37,2.7061]
[1724120132703,3.4373,145.41,145.38,3.48207689]
[1724120135198,3.4373,145.41,145.39,3.4378]
[1724120135395,3.4373,145.41,145.38,0.04417689]
[1724120135796,3.4373,145.41,145.38,3.48197689]
[1724120139118,8.45,145.42,145.38,0.04417689]
[1724120139119,3.4372,145.42,145.38,0.04417689]
[1724120139809,3.4372,145.42,145.39,3.4377]
[1724120141010,8.45,145.43,145.4,3.4375]
[1724120141208,8.45,145.43,145.38,0.04417689]
[1724120141617,3.4371,145.42,145.39,3.4377]
[1724120142117,3.4371,145.42,145.38,0.04417689]
[1724120142814,3.4371,145.42,145.39,3.4376]
[1724120145214,3.4371,145.42,145.4,3.4375]
[1724120146121,3.4366,145.44,145.41,3.4372]
[1724120146313,11.8866,145.44,145.41,3.4372]
[1724120146515,8.45,145.44,145.41,0.04646535]
[1724120146723,3.4365,145.45,145.42,3.4369]
[1724120152016,3.4362,145.46,145.42,3.4369]
[1724120152528,3.4362,145.46,145.43,0.04772335]
[1724120153025,3.4364,145.45,145.43,0.04772335]
[1724120153219,3.37068997,145.52,145.44,3.4366]
[1724120153522,3.4356,145.48,145.47,0.05277687]
[1724120153821,8.45,145.51,145.47,0.05277687]
[1724120154316,8.45,145.5,145.47,0.05277687]
[1724120154517,3.47561885,145.53,145.47,0.05277687]
[1724120154821,8.45,145.49,145.47,0.05277687]
[1724120155218,11.8856,145.49,145.47,0.05277687]
[1724120155727,8.45,145.48,145.47,0.05277687]
[1724120155917,11.8856,145.48,145.47,0.05277687]
[1724120163525,3.4356,145.48,145.47,0.05277687]
[1724120164728,11.8856,145.48,145.47,0.05277687]
[1724120165819,3.4356,145.48,145.47,0.05277687]
[1724120167427,3.4356,145.49,145.47,0.05277687]
[1724120167622,8.45,145.51,145.47,0.05277687]
[1724120168727,8.45,145.49,145.47,0.05277687]
[1724120169131,8.45,145.48,145.47,0.05277687]
[1724120169328,11.8856,145.48,145.47,0.05277687]
[1724120169533,3.4356,145.48,145.47,0.05277687]
[1724120172635,11.8856,145.48,145.47,0.05277687]
[1724120175128,3.4356,145.48,145.47,0.05277687]
[1724120181529,3.4355,145.49,145.47,0.05277687]
[1724120181735,8.45,145.51,145.47,0.05277687]
[1724120182236,3.4356,145.48,145.47,0.05277687]
[1724120188141,11.8856,145.48,145.47,0.05277687]
[1724120188337,11.8856,145.48,145.37,2.6378]
[1724120188338,3.4365,145.45,145.38,1.2892]
[1724120188543,8.45,145.47,145.4,8.45]
[1724120188742,3.4362,145.46,145.42,3.4369]